bitfinex/quotes_BTCUSD_20250716
["timestamp","ask_amount","ask_price","bid_price","bid_amount"]
[1752666894503,0.5546895,118890.0,118880.0,0.13109053]
[1752666896021,0.22379285,118890.0,118880.0,0.13109053]
[1752666896235,0.5546895,118890.0,118880.0,0.13109053]
[1752666896865,0.5546895,118890.0,118880.0,0.13074989]
[1752666897402,0.22379285,118890.0,118880.0,0.13074989]
[1752666897625,0.5546895,118890.0,118880.0,0.13074989]
[1752666899070,0.22379285,118890.0,118880.0,0.13074989]
[1752666899279,0.5546895,118890.0,118880.0,0.13074989]
[1752666901432,0.64019978,118890.0,118880.0,0.13074989]
[1752666901652,1.09813643,118890.0,118880.0,1e-08]
[1752666901870,0.76723978,118890.0,118880.0,1e-08]
[1752666904536,0.54727227,118870.0,118860.0,1e-08]
[1752666904713,0.54727227,118870.0,118860.0,0.00050579]
[1752666904714,0.63473255,118870.0,118860.0,0.00050579]
[1752666905142,0.63787255,118870.0,118860.0,0.00050579]
[1752666905401,0.63787255,118870.0,118860.0,1e-08]
[1752666906275,0.76491255,118870.0,118860.0,1e-08]
[1752666906520,0.3069759,118870.0,118860.0,1e-08]
[1752666906742,0.63787255,118870.0,118860.0,1e-08]
[1752666907335,0.63887255,118870.0,118860.0,1e-08]
[1752666910963,0.76591255,118870.0,118860.0,1e-08]
[1752666911623,0.4350159,118870.0,118860.0,1e-08]
[1752666911833,0.76591255,118870.0,118860.0,1e-08]
[1752666915535,0.4350159,118870.0,118860.0,0.33089666]
[1752666916511,0.4350159,118870.0,118860.0,1e-08]
[1752666917603,0.3079759,118870.0,118860.0,1e-08]
[1752666918334,0.63887255,118870.0,118860.0,1e-08]
[1752666922926,0.63767255,118870.0,118860.0,1e-08]
[1752666931595,0.76471255,118870.0,118860.0,1e-08]
[1752666932201,0.85047217,118870.0,118860.0,1e-08]
[1752666933179,0.51957552,118870.0,118860.0,1e-08]
[1752666933504,0.85047217,118870.0,118860.0,1e-08]
[1752666934312,0.76471255,118870.0,118860.0,1e-08]
[1752666940639,0.16827934,118850.0,118820.0,0.36639665]
[1752666940843,0.1767229,118830.0,118820.0,0.49348716]
[1752666941201,0.1767229,118830.0,118820.0,0.49488716]
[1752666943124,0.1767229,118830.0,118820.0,0.47898716]
[1752666943327,0.1817729,118830.0,118820.0,0.46278716]
[1752666943529,0.1827729,118830.0,118820.0,0.46278716]
[1752666943935,0.1990729,118830.0,118820.0,0.13049051]
[1752666944216,0.54556955,118830.0,118820.0,0.00345051]
[1752666944447,0.2136729,118830.0,118820.0,0.00345051]
[1752666944820,0.2156729,118830.0,118820.0,0.00345051]
[1752666945367,0.63207983,118830.0,118820.0,0.00345051]
[1752666945894,0.63207983,118830.0,118820.0,1e-08]
[1752666947684,0.75911983,118830.0,118820.0,1e-08]
[1752666948067,0.42822318,118830.0,118820.0,1e-08]
[1752666948295,0.75911983,118830.0,118820.0,1e-08]
[1752666949550,0.75711983,118830.0,118820.0,1e-08]
[1752666949992,0.75811983,118830.0,118820.0,1e-08]
[1752666950455,0.75811983,118830.0,118800.0,0.0332]
[1752666950456,0.17675264,118810.0,118800.0,0.0332]
[1752666950677,0.29676292,118810.0,118800.0,0.16036779]
[1752666951140,0.29981292,118810.0,118800.0,0.16036779]
[1752666951797,0.29981292,118810.0,118800.0,0.03332779]
[1752666951798,0.63070957,118810.0,118800.0,0.03332779]
[1752666952846,0.75774957,118810.0,118800.0,1e-08]
[1752666953063,0.20926752,118800.0,118790.0,1e-08]
[1752666953272,0.73921955,118800.0,118790.0,1e-08]
[1752666953541,0.2999678,118800.0,118790.0,1e-08]
[1752666954393,0.30853053,118800.0,118790.0,1e-08]
[1752666954596,0.30953053,118800.0,118790.0,1e-08]
[1752666954816,0.3009678,118800.0,118790.0,1e-08]
[1752666956569,0.74336955,118800.0,118790.0,1e-08]
[1752666958452,0.17678241,118790.0,118780.0,1e-08]
[1752666958694,0.73693444,118790.0,118780.0,1e-08]
[1752666958925,0.86756444,118790.0,118780.0,1e-08]
[1752666959360,0.74008444,118790.0,118780.0,1e-08]
[1752666959575,0.42516269,118790.0,118780.0,1e-08]
[1752666960242,0.29768269,118790.0,118780.0,1e-08]
[1752666960463,0.42524269,118790.0,118780.0,1e-08]
[1752666960678,0.41014269,118790.0,118780.0,1e-08]
[1752666961542,0.42574269,118790.0,118780.0,1e-08]
[1752666962008,0.42674269,118790.0,118780.0,1e-08]
[1752666962467,0.29918269,118790.0,118780.0,1e-08]
[1752666962681,0.42674269,118790.0,118780.0,1e-08]
[1752666963154,0.17778241,118790.0,118780.0,0.47670176]
[1752666963585,0.17778241,118790.0,118780.0,0.03430001]
[1752666963831,0.17778241,118790.0,118780.0,0.16206001]
[1752666965347,0.20305641,118790.0,118780.0,0.60446176]
[1752666965560,0.17778241,118790.0,118780.0,0.60533176]
[1752666965983,0.17778241,118790.0,118780.0,0.47757176]
[1752666966199,0.17778241,118790.0,118780.0,0.60537176]
[1752666966416,0.17778241,118790.0,118780.0,0.16297001]
[1752666966628,0.17778241,118790.0,118780.0,0.47757176]
[1752666966862,0.17778241,118790.0,118780.0,0.60537176]
[1752666967094,0.18620041,118790.0,118780.0,0.65436912]
[1752666967318,0.18620041,118790.0,118780.0,0.87609818]
[1752666967535,0.18620041,118790.0,118780.0,0.85926055]
[1752666967764,0.17778241,118790.0,118780.0,0.69088204]
[1752666967995,0.16936434,118790.0,118780.0,0.69088204]
[1752666968431,0.16836434,118790.0,118780.0,0.69088204]
[1752666968644,0.17036434,118790.0,118780.0,0.86867947]
[1752666968858,0.17036434,118790.0,118780.0,0.87709832]
[1752666969278,0.17878241,118790.0,118780.0,0.86867947]
[1752666969494,0.17878241,118790.0,118780.0,0.88551696]
[1752666969707,0.17878241,118790.0,118780.0,0.87709825]
[1752666970069,0.17878241,118790.0,118780.0,0.88551696]
[1752666970273,0.17878241,118790.0,118780.0,0.87709825]
[1752666970474,0.01041765,118790.0,118780.0,0.90235388]
[1752666970728,0.02725344,118790.0,118780.0,1.21695563]
[1752666970939,0.0356713,118790.0,118780.0,1.19975388]
[1752666971147,0.01883544,118790.0,118780.0,1.19975388]
[1752666971697,0.002,118790.0,118780.0,1.19975388]
[1752666971901,0.002,118790.0,118780.0,4.78362763]
[1752666972218,0.002,118790.0,118780.0,4.64776863]
[1752666972430,0.002,118790.0,118780.0,3.98739463]
[1752666972630,0.002,118790.0,118780.0,3.97674163]
[1752666973051,0.002,118790.0,118780.0,3.82914163]
[1752666973224,0.002,118790.0,118780.0,2.77149963]
[1752666973429,0.01688434,118800.0,118790.0,0.22591813]
[1752666973630,0.01688434,118800.0,118790.0,1.19850191]
[1752666973839,5.046e-05,118800.0,118790.0,1.19850191]
[1752666976910,0.00846733,118800.0,118790.0,1.49590191]
[1752666977087,0.02530156,118800.0,118790.0,1.49590191]
[1752666977320,0.00846733,118800.0,118790.0,1.49590191]
[1752666977526,0.01688441,118800.0,118790.0,1.49590191]
[1752666978273,0.01788441,118800.0,118790.0,1.49890191]
[1752666978560,0.01788434,118800.0,118790.0,1.49890191]
[1752666978969,0.01788441,118800.0,118790.0,1.49890191]
[1752666979581,0.00946733,118800.0,118790.0,1.49890191]
[1752666979791,0.02630142,118800.0,118790.0,1.49890191]
[1752666980011,0.02630149,118800.0,118790.0,0.61409841]
[1752666980262,0.01788434,118800.0,118790.0,1.49890191]
[1752666980462,0.02630149,118800.0,118790.0,1.49890191]
[1752666980721,0.01788434,118800.0,118790.0,1.49890191]
[1752666980942,0.02630149,118800.0,118790.0,1.49890191]
[1752666981167,0.01788434,118800.0,118790.0,1.49890191]
[1752666981386,0.02630149,118800.0,118790.0,1.49890191]
[1752666981849,0.02630142,118800.0,118790.0,1.49890191]
[1752666982060,0.02630142,118800.0,118790.0,1.20650016]
[1752666982237,0.02630149,118800.0,118790.0,1.05650016]
[1752666982502,0.03471885,118800.0,118790.0,1.18438016]
[1752666983572,0.03471878,118800.0,118790.0,1.18438016]
[1752666984422,0.04313614,118800.0,118790.0,1.18438016]
[1752666985544,0.02630149,118800.0,118790.0,1.18438016]
[1752666985839,0.01788434,118800.0,118790.0,1.18438016]
[1752666986052,0.02630149,118800.0,118790.0,1.62678191]
[1752666986238,0.00105046,118800.0,118790.0,1.62678191]
[1752666986662,0.0094674,118800.0,118790.0,1.62678191]
[1752666986866,0.02630177,118800.0,118790.0,1.62678191]
[1752666987104,0.0263017,118800.0,118790.0,1.62678191]
[1752666987323,0.01788448,118800.0,118790.0,1.62678191]
[1752666987653,0.0263017,118800.0,118790.0,1.62678191]
[1752666988950,0.01788448,118800.0,118790.0,1.62678191]
[1752666989683,0.0094674,118800.0,118790.0,1.62678191]
[1752666992146,0.01788441,118800.0,118790.0,1.62678191]
[1752666992767,0.02630149,118800.0,118790.0,1.18438016]
[1752666993551,0.01788441,118800.0,118790.0,1.18438016]
[1752666994100,0.02630149,118800.0,118790.0,1.18438016]
[1752666994298,0.01788441,118800.0,118790.0,1.18438016]
[1752666994706,0.0094674,118800.0,118790.0,1.18438016]
[1752666995108,0.00105046,118800.0,118790.0,1.96549891]
[1752667000776,0.0094674,118800.0,118790.0,1.93319891]
[1752667001018,0.00946733,118800.0,118790.0,1.93319891]
[1752667001225,0.00105046,118800.0,118790.0,1.94869891]
[1752667001439,0.00105046,118800.0,118790.0,1.96469891]
[1752667004329,0.00105046,118800.0,118790.0,4.96180491]
[1752667004542,0.00105046,118800.0,118790.0,4.16751991]
[1752667004753,0.00105046,118800.0,118790.0,4.06853491]
[1752667004943,0.00105046,118800.0,118790.0,1.62598191]
[1752667005438,0.00105046,118800.0,118790.0,3.84938991]
[1752667005662,0.00105046,118800.0,118790.0,3.55439991]
[1752667006305,0.00105046,118800.0,118790.0,2.31547691]
[1752667006516,0.00105046,118800.0,118790.0,2.08487391]
[1752667006737,0.00105046,118800.0,118790.0,2.31487391]
[1752667007201,0.00015622,118800.0,118790.0,3.31487391]
[1752667007423,0.00015622,118800.0,118790.0,3.38440891]
[1752667008410,0.00015622,118800.0,118790.0,3.38262891]
[1752667009473,0.00015622,118800.0,118790.0,3.37962891]
[1752667009674,0.00015622,118800.0,118790.0,3.03749291]
[1752667010382,0.00015622,118800.0,118790.0,3.04231591]
[1752667010587,0.00015622,118800.0,118790.0,2.04231591]
[1752667010763,0.00015622,118800.0,118790.0,1.95240391]
[1752667011349,0.01635622,118800.0,118790.0,1.71006291]
[1752667011564,0.01635622,118800.0,118790.0,1.70998291]
[1752667011962,0.00015622,118800.0,118790.0,1.70998291]
[1752667012518,0.00015622,118800.0,118790.0,1.80537091]
[1752667013158,0.00015622,118800.0,118790.0,1.80624091]
[1752667013371,0.00015622,118800.0,118790.0,1.82244091]
[1752667013583,0.00015622,118800.0,118790.0,2.81644091]
[1752667014672,0.00015622,118800.0,118790.0,2.81682391]
[1752667015722,0.00015622,118800.0,118790.0,2.83174891]
[1752667016559,0.00015622,118800.0,118790.0,1.61060191]
[1752667016742,0.00015622,118800.0,118790.0,3.13266091]
[1752667016942,0.00015622,118800.0,118790.0,3.15792191]
[1752667017254,0.0246163,118810.0,118800.0,0.34360182]
[1752667017460,0.0246163,118810.0,118800.0,2.7285496]
[1752667017662,0.02461616,118810.0,118800.0,2.7285496]
[1752667018414,0.02461616,118810.0,118800.0,3.0259496]
[1752667018827,0.0162,118810.0,118800.0,3.0259496]
[1752667019241,0.0172,118810.0,118800.0,3.0279496]
[1752667020310,0.001,118810.0,118800.0,3.0279496]
[1752667020917,0.00941616,118810.0,118800.0,3.0279496]
[1752667021133,0.01783246,118810.0,118800.0,3.0279496]
[1752667021679,0.00941616,118810.0,118800.0,3.0279496]
[1752667022029,0.02511616,118810.0,118800.0,3.0279496]
[1752667022217,0.03353246,118810.0,118800.0,3.0279496]
[1752667022902,0.0419489,118810.0,118800.0,3.0279496]
[1752667023328,0.03353246,118810.0,118800.0,3.0279496]
[1752667024648,0.02511616,118810.0,118800.0,3.0279496]
[1752667025554,0.03353246,118810.0,118800.0,2.9934266]
[1752667025764,0.06161897,118810.0,118800.0,2.9934266]
[1752667025985,0.0616189,118810.0,118800.0,2.9934266]
[1752667026220,0.05320246,118810.0,118800.0,2.9934266]
[1752667026431,0.05320246,118810.0,118800.0,1.7424356]
[1752667026666,0.05320246,118810.0,118800.0,3.0498266]
[1752667026926,0.06161876,118810.0,118800.0,3.0498266]
[1752667027176,0.06161876,118810.0,118800.0,2.9874266]
[1752667027852,0.05320239,118810.0,118800.0,2.9874266]
[1752667028293,0.06161869,118810.0,118800.0,2.9874266]
[1752667028540,0.04171616,118810.0,118800.0,2.9874266]
[1752667028762,0.02511623,118810.0,118800.0,2.9874266]
[1752667029197,0.0167,118810.0,118800.0,2.9874266]
[1752667030519,0.02511623,118810.0,118800.0,2.9874266]
[1752667030760,0.0167,118810.0,118800.0,2.9874266]
[1752667031841,0.02511623,118810.0,118800.0,2.9874266]
[1752667032857,0.0167,118810.0,118800.0,2.9874266]
[1752667033531,0.02511623,118810.0,118800.0,2.9874266]
[1752667033737,0.0167,118810.0,118800.0,2.9874266]
[1752667034175,0.02511623,118810.0,118800.0,2.9874266]
[1752667034716,0.0167,118810.0,118800.0,2.9874266]
[1752667035161,0.02511623,118810.0,118800.0,2.9874266]
[1752667036058,0.0524026,118810.0,118800.0,2.9874266]
[1752667036314,0.04602623,118810.0,118800.0,2.9874266]
[1752667036820,0.06285897,118810.0,118800.0,2.8032706]
[1752667037029,0.05444253,118810.0,118800.0,2.7857196]
[1752667037445,0.04602623,118810.0,118800.0,2.7857196]
[1752667037667,0.04602623,118810.0,118800.0,2.8011336]
[1752667038413,0.03761,118810.0,118800.0,2.8025336]
[1752667038878,0.04602616,118810.0,118800.0,2.8025336]
[1752667039797,0.03761,118810.0,118800.0,2.8025336]
[1752667040020,0.05444267,118810.0,118800.0,2.7804506]
[1752667041019,0.05444267,118810.0,118800.0,2.89015238]
[1752667041497,0.06285911,118810.0,118800.0,2.89015238]
[1752667041725,0.05444267,118810.0,118800.0,2.89015238]
[1752667043631,0.0460263,118810.0,118800.0,2.89015238]
[1752667044488,0.0460263,118810.0,118800.0,2.87498238]
[1752667044699,0.0460263,118810.0,118800.0,2.87638238]
[1752667046480,0.05444274,118810.0,118800.0,2.87638238]
[1752667046681,0.0460263,118810.0,118800.0,2.87638238]
[1752667047142,0.05444274,118810.0,118800.0,2.87638238]
[1752667047343,0.05444274,118810.0,118800.0,1.85213738]
[1752667047829,0.05444267,118810.0,118800.0,1.85213738]
[1752667048892,0.06285918,118810.0,118800.0,1.85213738]
[1752667049122,0.05444267,118810.0,118800.0,1.85213738]
[1752667049350,0.06285918,118810.0,118800.0,1.85213738]
[1752667049973,0.05444267,118810.0,118800.0,1.85213738]
[1752667050401,0.06285918,118810.0,118800.0,1.85213738]
[1752667050819,0.05444267,118810.0,118800.0,1.85213738]
[1752667052108,0.0460263,118810.0,118800.0,2.00889738]
[1752667053354,0.05444274,118810.0,118800.0,2.00889738]
[1752667053492,0.0460263,118810.0,118800.0,2.00889738]
[1752667054115,0.05444274,118810.0,118800.0,2.00889738]
[1752667055512,0.0460263,118810.0,118800.0,2.00889738]
[1752667056985,0.05444267,118810.0,118800.0,2.00889738]
[1752667059856,0.06285918,118810.0,118800.0,2.00889738]
[1752667060000,0.05444267,118810.0,118800.0,2.00889738]
[1752667061108,0.06285918,118810.0,118800.0,2.00889738]
[1752667061312,0.05444267,118810.0,118800.0,2.00889738]
[1752667061520,0.06285918,118810.0,118800.0,1.98123438]
[1752667061723,0.06285918,118810.0,118800.0,1.85213738]
[1752667062395,0.23961189,118810.0,118800.0,0.57009523]
[1752667062610,0.23961189,118810.0,118800.0,1.3688359]
[1752667062611,0.24802868,118810.0,118800.0,1.3688359]
[1752667062802,0.23961238,118810.0,118800.0,1.3688359]
[1752667063014,0.23119601,118810.0,118800.0,1.3688359]
[1752667063440,0.06286002,118810.0,118800.0,1.3688359]
[1752667063645,0.06286002,118810.0,118800.0,1.37725291]
[1752667063926,0.23119601,118810.0,118800.0,1.37725291]
[1752667064303,0.23119601,118810.0,118800.0,1.36041875]
[1752667064512,0.23119601,118810.0,118800.0,1.37725298]
[1752667065695,0.23119601,118810.0,118800.0,1.38566999]
[1752667066313,0.06286002,118810.0,118800.0,1.38566999]
[1752667066513,0.06285946,118810.0,118800.0,1.38566999]
[1752667068526,0.05444281,118810.0,118800.0,1.38566999]
[1752667069926,0.06285946,118810.0,118800.0,1.38566999]
[1752667070351,0.05444281,118810.0,118800.0,1.38566999]
[1752667070765,0.0460263,118810.0,118800.0,1.38566999]
[1752667070977,0.05444274,118810.0,118800.0,1.38566999]
[1752667071411,0.001,118810.0,118800.0,1.71857175]
[1752667073347,0.03685,118810.0,118800.0,1.38566999]
[1752667073568,0.04526623,118810.0,118800.0,1.71717175]
[1752667073766,0.04526616,118810.0,118800.0,1.08966999]
[1752667074196,0.05368253,118810.0,118800.0,1.08966999]
[1752667074675,0.05368246,118810.0,118800.0,1.08966999]
[1752667075100,0.0620989,118810.0,118800.0,1.08966999]
[1752667076100,0.0620989,118810.0,118800.0,0.29794647]
[1752667076309,0.2388521,118810.0,118800.0,1.07139562]
[1752667076517,0.2388521,118810.0,118800.0,1.06297854]
[1752667076729,0.2304358,118810.0,118800.0,1.06297854]
[1752667079176,0.22201936,118810.0,118800.0,1.05452139]
[1752667079641,0.22201936,118810.0,118800.0,1.06293875]
[1752667080282,0.22201936,118810.0,118800.0,1.07977326]
[1752667080495,0.22201936,118810.0,118800.0,1.08819034]
[1752667081742,0.22201936,118810.0,118800.0,1.07977326]
[1752667081954,0.22201936,118810.0,118800.0,0.08751028]
[1752667082167,0.22201936,118810.0,118800.0,0.002]
[1752667082383,0.22201936,118810.0,118800.0,0.12924]
[1752667082601,0.55352112,118810.0,118800.0,0.002]
[1752667082823,0.55352112,118810.0,118800.0,0.12924]
[1752667083036,0.22201936,118810.0,118800.0,0.12924]
[1752667084323,0.66330057,118810.0,118800.0,0.12724]
[1752667084562,0.21640027,118790.0,118780.0,0.00300001]
[1752667084803,0.66070148,118790.0,118780.0,0.00312741]
[1752667085012,0.66363148,118790.0,118780.0,0.00312741]
[1752667085434,0.22135027,118790.0,118780.0,0.00312741]
[1752667085839,0.23094625,118790.0,118780.0,0.00412741]
[1752667086050,0.22235027,118790.0,118780.0,0.00312741]
[1752667086498,0.22535027,118790.0,118780.0,0.00412741]
[1752667087885,0.25024074,118790.0,118780.0,0.00412741]
[1752667097570,0.69252195,118790.0,118780.0,0.00412741]
[1752667098563,0.25024074,118790.0,118780.0,0.00412741]
[1752667098771,0.69252195,118790.0,118780.0,0.00412741]
[1752667100606,0.25024074,118790.0,118780.0,0.00412741]
[1752667104857,0.22535027,118790.0,118780.0,0.00412741]
[1752667107468,0.25016818,118790.0,118780.0,0.00412741]
[1752667108863,0.22535027,118790.0,118780.0,0.00412741]
[1752667109088,0.22535027,118790.0,118780.0,0.57384862]
[1752667113199,0.22535027,118790.0,118780.0,0.13156741]
[1752667113407,0.22535027,118790.0,118780.0,0.57384862]
[1752667115057,0.22535027,118790.0,118780.0,0.13156741]
[1752667115298,0.22535027,118790.0,118780.0,0.57384862]
[1752667117939,0.22535027,118790.0,118780.0,0.13156741]
[1752667118139,0.22535027,118790.0,118780.0,0.57384862]
[1752667120821,0.21015027,118790.0,118780.0,0.57524862]
[1752667121032,0.18920027,118790.0,118780.0,0.57524862]
[1752667121483,0.18920027,118790.0,118780.0,0.74362713]
[1752667121717,0.18920027,118790.0,118780.0,0.57524862]
[1752667124392,0.20781027,118790.0,118780.0,0.57524862]
[1752667124729,0.18078241,118790.0,118780.0,0.76046483]
[1752667126198,0.18078241,118790.0,118780.0,0.75204605]
[1752667127299,0.17236434,118790.0,118780.0,0.75204605]
[1752667129535,0.17236434,118790.0,118780.0,0.7604649]
[1752667129739,0.17236434,118790.0,118780.0,0.31818369]
[1752667129947,0.17236434,118790.0,118780.0,0.7604649]
[1752667130925,0.17236434,118790.0,118780.0,0.98155823]
[1752667131173,0.19761848,118790.0,118780.0,0.98997694]
[1752667131376,0.19761848,118790.0,118780.0,0.99839558]
[1752667131778,0.19761848,118790.0,118780.0,0.98155823]
[1752667131983,0.18920062,118790.0,118780.0,0.98155823]
[1752667133181,0.18920062,118790.0,118780.0,0.98997701]
[1752667134014,0.18078255,118790.0,118780.0,0.80476087]
[1752667134222,0.18078255,118790.0,118780.0,0.79634195]
[1752667135982,0.18078255,118790.0,118780.0,0.30134592]
[1752667136195,0.18078255,118790.0,118780.0,0.96472046]
[1752667136774,0.19638255,118790.0,118780.0,0.96472046]
[1752667137228,0.20862434,118790.0,118780.0,0.79634195]
[1752667139158,0.20862434,118790.0,118780.0,0.96472046]
[1752667139634,0.20862434,118790.0,118780.0,0.97313938]
[1752667139890,0.19095434,118790.0,118780.0,0.97313938]
[1752667141502,0.19095434,118790.0,118780.0,0.98155823]
[1752667149792,0.18078255,118790.0,118780.0,0.98155823]
[1752667150075,0.1976182,118790.0,118780.0,1.006814]
[1752667150278,0.18518481,118800.0,118790.0,0.19360826]
[1752667150479,0.2104364,118800.0,118790.0,1.0795908]
[1752667150719,0.04208624,118800.0,118790.0,1.0795908]
[1752667150896,0.03366874,118800.0,118790.0,1.0795908]
[1752667151112,0.21043633,118800.0,118790.0,1.0795908]
[1752667152136,0.20201939,118800.0,118790.0,1.07117308]
[1752667152355,0.20201939,118800.0,118790.0,1.07117322]
[1752667152491,0.20301939,118800.0,118790.0,1.07417322]
[1752667152943,0.20301939,118800.0,118790.0,1.08259108]
[1752667153869,0.02625173,118800.0,118790.0,1.08259108]
[1752667154061,0.02625173,118800.0,118790.0,1.0910088]
[1752667154263,0.19460189,118800.0,118790.0,1.0910088]
[1752667154414,0.20301939,118800.0,118790.0,1.0910088]
[1752667154591,0.20301939,118800.0,118790.0,1.08259108]
[1752667155900,0.19460224,118800.0,118790.0,1.08259108]
[1752667156210,0.19460224,118800.0,118790.0,1.07417322]
[1752667156418,0.21060224,118800.0,118790.0,1.07417322]
[1752667157043,0.20218502,118800.0,118790.0,1.07417322]
[1752667157220,0.19376766,118800.0,118790.0,1.06575529]
[1752667157753,0.19376766,118800.0,118790.0,1.07417322]
[1752667158762,0.19376766,118800.0,118790.0,0.40238075]
[1752667158976,0.19675766,118800.0,118790.0,0.73406802]
[1752667159375,0.21285766,118800.0,118790.0,0.73406802]
[1752667160104,0.21285766,118800.0,118790.0,0.74248595]
[1752667160304,0.21285766,118800.0,118790.0,1.07417322]
[1752667163795,0.21285766,118800.0,118790.0,1.06575543]
[1752667164007,0.21285766,118800.0,118790.0,0.73406816]
[1752667164206,0.20444016,118800.0,118790.0,0.72565002]
[1752667164955,0.20444016,118800.0,118790.0,0.73406816]
[1752667165488,0.20444016,118800.0,118790.0,1.06575543]
[1752667165690,0.20444016,118800.0,118790.0,1.0741735]
[1752667168560,0.20647016,118800.0,118790.0,1.0741735]
[1752667170457,0.19675752,118800.0,118790.0,1.09100929]
[1752667170641,0.19376752,118800.0,118790.0,1.09100887]
[1752667172037,0.20218467,118800.0,118790.0,1.09100845]
[1752667172556,0.2106021,118800.0,118790.0,1.09100845]
[1752667173013,0.2190196,118800.0,118790.0,1.09100845]
[1752667173431,0.2190196,118800.0,118790.0,1.08259073]
[1752667173609,0.2190196,118800.0,118790.0,1.07417294]
[1752667173933,0.21060245,118800.0,118790.0,1.07417294]
[1752667175104,0.21060245,118800.0,118790.0,1.07417294]
[1752667176484,0.02541736,118800.0,118790.0,1.07417294]
[1752667176711,0.19460217,118800.0,118790.0,1.08259066]
[1752667177857,0.19460217,118800.0,118790.0,1.07417294]
[1752667179368,0.19460217,118800.0,118790.0,1.08259073]
[1752667179626,0.18450023,118800.0,118790.0,1.08259073]
[1752667180043,0.19291759,118800.0,118790.0,1.08259073]
[1752667180261,0.19291759,118800.0,118790.0,1.09100845]
[1752667180690,0.19291759,118800.0,118790.0,1.07417294]
[1752667180909,0.19291759,118800.0,118790.0,1.09100845]
[1752667181441,0.20941759,118800.0,118790.0,1.09100845]
[1752667182124,0.20941759,118800.0,118790.0,1.07417294]
[1752667183134,0.19291759,118800.0,118790.0,1.07417294]
[1752667183773,0.19291759,118800.0,118790.0,1.08259073]
[1752667185947,0.19291759,118800.0,118790.0,1.07417294]
[1752667186148,0.20941759,118800.0,118790.0,1.07417294]
[1752667187050,0.19291759,118800.0,118790.0,1.07417294]
[1752667187287,0.01614993,118800.0,118790.0,1.08259073]
[1752667187475,0.18450009,118800.0,118790.0,1.09889073]
[1752667187773,0.18450009,118800.0,118790.0,1.08259073]
[1752667188995,0.01614993,118800.0,118790.0,1.08259073]
[1752667189135,0.19291752,118800.0,118790.0,1.09100845]
[1752667189335,0.18281559,118800.0,118790.0,1.09100845]
[1752667189550,0.01446515,118800.0,118790.0,1.09100845]
[1752667189784,0.02525138,118800.0,118790.0,1.09100845]
[1752667190216,0.03366874,118800.0,118790.0,1.09100845]
[1752667190937,0.04916874,118800.0,118790.0,1.09100845]
[1752667191956,0.21751939,118800.0,118790.0,1.08259073]
[1752667192128,0.03203316,118810.0,118800.0,0.18518474]
[1752667192335,0.03203316,118810.0,118800.0,0.79065454]
[1752667192336,0.21228278,118810.0,118800.0,0.79065454]
[1752667192978,0.21228278,118810.0,118800.0,0.9590047]
[1752667193119,0.21228278,118810.0,118800.0,0.9674222]
[1752667193798,0.21328278,118810.0,118800.0,0.9694222]
[1752667194002,0.21328278,118810.0,118800.0,0.79265454]
[1752667194353,0.21113278,118810.0,118800.0,0.79405454]
[1752667194553,0.21113278,118810.0,118800.0,0.9624047]
[1752667194924,0.21113278,118810.0,118800.0,0.97085177]
[1752667195133,0.21113278,118810.0,118800.0,0.80250161]
[1752667195272,0.21113278,118810.0,118800.0,0.97926927]
[1752667195855,0.21113278,118810.0,118800.0,0.80250161]
[1752667196001,0.21113278,118810.0,118800.0,0.97085177]
[1752667196203,0.21113278,118810.0,118800.0,0.97926927]
[1752667196381,0.21113278,118810.0,118800.0,0.9876867]
[1752667196579,0.20805278,118810.0,118800.0,0.9876867]
[1752667196803,0.19295278,118810.0,118800.0,0.9876867]
[1752667197415,0.19295278,118810.0,118800.0,0.99610406]
[1752667197616,0.03303323,118810.0,118800.0,1.09844885]
[1752667197869,0.2266191,118810.0,118800.0,1.09844843]
[1752667198080,0.04986632,118810.0,118800.0,0.43507347]
[1752667198288,0.04986632,118810.0,118800.0,1.09844801]
[1752667198505,0.00941623,118810.0,118800.0,1.43013528]
[1752667198762,0.0178326,118810.0,118800.0,1.44523528]
[1752667198960,0.00941616,118810.0,118800.0,1.44523528]
[1752667199161,0.001,118810.0,118800.0,1.44523528]
[1752667199781,0.00941616,118810.0,118800.0,1.44523528]
[1752667200185,0.00941616,118810.0,118800.0,1.74263528]
[1752667200411,0.00941616,118810.0,118800.0,1.74350528]
[1752667200843,0.00941616,118810.0,118800.0,1.75870528]
[1752667201190,0.001,118810.0,118800.0,1.75870528]
[1752667201825,0.001,118810.0,118800.0,1.46130528]
[1752667202806,0.001,118810.0,118800.0,1.33402528]
[1752667203017,0.001,118810.0,118800.0,1.46126528]
[1752667203617,0.00941616,118810.0,118800.0,1.46126528]
[1752667203852,0.01783246,118810.0,118800.0,1.44519528]
[1752667204071,0.001,118810.0,118800.0,1.31795528]
[1752667204293,0.00941616,118810.0,118800.0,1.44519528]
[1752667204833,0.00941616,118810.0,118800.0,1.43009528]
[1752667205278,0.001,118810.0,118800.0,1.43009528]
[1752667206180,0.00014889,118810.0,118800.0,1.43009528]
[1752667206439,0.00014889,118810.0,118800.0,1.44626528]
[1752667206800,0.00014889,118810.0,118800.0,1.43009528]
[1752667207360,0.00014889,118810.0,118800.0,1.42164821]
[1752667208465,0.00856505,118810.0,118800.0,1.42164821]
[1752667209221,0.00014889,118810.0,118800.0,1.42164821]
[1752667209428,0.00014889,118810.0,118800.0,1.43794821]
[1752667209620,0.00014889,118810.0,118800.0,1.43881821]
[1752667209845,0.00014889,118810.0,118800.0,1.45401821]
[1752667210548,0.00856505,118810.0,118800.0,1.45401821]
[1752667210927,0.00856505,118810.0,118800.0,1.43881821]
[1752667211135,0.00014889,118810.0,118800.0,1.43881821]
[1752667213431,0.00014889,118810.0,118800.0,1.44831417]
[1752667213636,0.00014889,118810.0,118800.0,1.44744417]
[1752667214335,0.00014889,118810.0,118800.0,1.65775623]
[1752667217386,0.00014889,118810.0,118800.0,1.65862623]
[1752667217589,0.00014889,118810.0,118800.0,1.56148623]
[1752667217791,0.00014889,118810.0,118800.0,1.68872623]
[1752667220560,0.00014889,118810.0,118800.0,1.54648623]
[1752667220761,0.00014889,118810.0,118800.0,1.67372623]
[1752667221961,0.00014889,118810.0,118800.0,1.67285623]
[1752667224336,0.00014889,118810.0,118800.0,1.65775623]
[1752667229904,0.00014889,118810.0,118800.0,1.74636623]
[1752667230095,0.00014889,118810.0,118800.0,1.65775623]
[1752667242783,0.06156821,118810.0,118800.0,1.16516036]
[1752667243001,0.22990476,118810.0,118800.0,0.3236183]
[1752667243202,0.22133943,118810.0,118800.0,0.21031206]
[1752667243424,0.22133943,118810.0,118800.0,0.66923933]
[1752667243623,0.22233943,118810.0,118800.0,0.67123933]
[1752667246626,0.22233943,118810.0,118800.0,0.54399933]
[1752667246852,0.22233943,118810.0,118800.0,0.46923933]
[1752667250646,0.22233943,118810.0,118800.0,0.8009266]
[1752667251616,0.22233943,118810.0,118800.0,0.46923933]
[1752667253528,0.22233943,118810.0,118800.0,0.8009266]
[1752667261272,0.22233943,118810.0,118800.0,0.96927676]
[1752667261492,0.22233943,118810.0,118800.0,0.6736866]
[1752667261774,0.62266971,118810.0,118800.0,0.002]